[Event "The Schackveckan 2023: IM-turnering"]
[Site "Goteborgs schackcentrum, Vegagatan 20, Gothenburg, Sweden"]
[Date "2023.08.11"]
[Round "9.3"]
[White "Kistrup, Nicolai"]
[Black "Sorensen, Hampus"]
[Result "1-0"]
[TimeControl "90 minutes for 40 moves + 30 minutes for the rest of the game + 30 seconds per move from move one."]
[WhiteTitle "FM"]
[BlackTitle "IM"]
[WhiteFideId "1444816"]
[BlackFideId "8703884"]
[WhiteElo "2339"]
[BlackElo "2475"]

1. e4 {[%clk 01:30:41]} {[%emt 00:00:19]} e5 {[%clk 01:28:20]} {[%emt
00:02:40]} 2. Nf3 {[%clk 01:31:06]} {[%emt 00:00:05]} Nc6 {[%clk 01:28:46]}
{[%emt 00:00:04]} 3. Bc4 {[%clk 01:31:30]} {[%emt 00:00:05]} Nf6 {[%clk
01:29:03]} {[%emt 00:00:13]} 4. Ng5 {[%clk 01:28:57]} {[%emt 00:03:03]} d5
{[%clk 01:29:06]} {[%emt 00:00:27]} 5. exd5 {[%clk 01:29:22]} {[%emt 00:00:06]}
Na5 {[%clk 01:29:23]} {[%emt 00:00:13]} 6. Bb5+ {[%clk 01:29:46]} {[%emt
00:00:06]} c6 {[%clk 01:29:47]} {[%emt 00:00:06]} 7. dxc6 {[%clk 01:30:10]}
{[%emt 00:00:05]} bxc6 {[%clk 01:30:11]} {[%emt 00:00:07]} 8. Bd3 {[%clk
01:30:07]} {[%emt 00:00:32]} Nd5 {[%clk 01:28:09]} {[%emt 00:02:32]} 9. Nf3
{[%clk 01:28:58]} {[%emt 00:01:39]} Bd6 {[%clk 01:26:21]} {[%emt 00:02:19]} 10.
Nc3 {[%clk 01:28:22]} {[%emt 00:01:06]} O-O {[%clk 01:19:01]} {[%emt 00:07:48]}
11. Be2 {[%clk 01:28:30]} {[%emt 00:00:23]} f5 {[%clk 01:09:56]} {[%emt
00:09:36]} 12. d3 {[%clk 01:18:38]} {[%emt 00:10:21]} Qc7 {[%clk 00:56:11]}
{[%emt 00:14:15]} 13. Bd2 {[%clk 01:06:42]} {[%emt 00:12:26]} Rb8 {[%clk
00:53:15]} {[%emt 00:03:26]} 14. Rb1 {[%clk 01:04:59]} {[%emt 00:02:13]} Bd7
{[%clk 00:46:25]} {[%emt 00:07:21]} 15. O-O {[%clk 00:57:15]} {[%emt 00:08:14]}
Nf6 {[%clk 00:39:22]} {[%emt 00:07:33]} 16. d4 {[%clk 00:44:50]} {[%emt
00:12:54]} exd4 {[%clk 00:37:50]} {[%emt 00:02:02]} 17. Nxd4 {[%clk 00:43:44]}
{[%emt 00:01:36]} Bxh2+ {[%clk 00:38:15]} {[%emt 00:00:06]} 18. Kh1 {[%clk
00:44:10]} {[%emt 00:00:04]} Be5 {[%clk 00:37:09]} {[%emt 00:01:35]} 19. Nf3
{[%clk 00:38:28]} {[%emt 00:06:13]} Bd6 {[%clk 00:37:15]} {[%emt 00:00:24]} 20.
a3 {[%clk 00:31:30]} {[%emt 00:07:28]} Nb7 {[%clk 00:33:35]} {[%emt 00:04:10]}
21. Be3 {[%clk 00:24:26]} {[%emt 00:07:34]} Ng4 {[%clk 00:22:37]} {[%emt
00:11:28]} 22. Bxa7 {[%clk 00:13:21]} {[%emt 00:11:34]} Rbe8 {[%clk 00:21:42]}
{[%emt 00:01:25]} 23. Bd4 {[%clk 00:12:19]} {[%emt 00:01:33]} Qd8 {[%clk
00:18:51]} {[%emt 00:03:22]} 24. b4 {[%clk 00:07:24]} {[%emt 00:05:24]} Bb8
{[%clk 00:16:07]} {[%emt 00:03:13]} 25. Bc4+ {[%clk 00:05:21]} {[%emt
00:02:33]} Kh8 {[%clk 00:13:15]} {[%emt 00:03:23]} 26. Qd3 {[%clk 00:04:58]}
{[%emt 00:00:52]} Nd6 {[%clk 00:06:57]} {[%emt 00:06:48]} 27. Rbd1 {[%clk
00:02:53]} {[%emt 00:02:36]} Be6 {[%clk 00:03:58]} {[%emt 00:03:28]} 28. Bxe6
{[%clk 00:02:28]} {[%emt 00:00:55]} Rxe6 {[%clk 00:04:27]} {[%emt 00:00:02]} 29.
Rfe1 {[%clk 00:02:17]} {[%emt 00:00:41]} Qe8 {[%clk 00:02:13]} {[%emt
00:02:44]} 30. Rxe6 {[%clk 00:01:13]} {[%emt 00:01:34]} Qxe6 {[%clk 00:02:42]}
{[%emt 00:00:02]} 31. Re1 {[%clk 00:00:47]} {[%emt 00:00:55]} Qg6 {[%clk
00:01:12]} {[%emt 00:02:00]} 32. Kg1 {[%clk 00:00:49]} {[%emt 00:00:28]} Nf7
{[%clk 00:01:23]} {[%emt 00:00:19]} 33. Bc5 {[%clk 00:00:47]} {[%emt 00:00:33]}
Rd8 {[%clk 00:01:20]} {[%emt 00:00:32]} 34. Qd7 {[%clk 00:00:39]} {[%emt
00:00:38]} Nf6 {[%clk 00:00:45]} {[%emt 00:01:04]} 35. Qxc6 {[%clk 00:00:49]}
{[%emt 00:00:20]} Rg8 {[%clk 00:00:49]} {[%emt 00:00:27]} 36. Nd5 {[%clk
00:00:48]} {[%emt 00:00:30]} Nxd5 {[%clk 00:01:07]} {[%emt 00:00:12]} 37. Qxd5
{[%clk 00:01:12]} {[%emt 00:00:07]} h6 {[%clk 00:01:11]} {[%emt 00:00:26]} 38.
Nh4 {[%clk 00:00:38]} {[%emt 00:01:04]} Qh5 {[%clk 00:01:22]} {[%emt 00:00:19]}
39. g3 {[%clk 00:00:50]} {[%emt 00:00:17]} Rd8 {[%clk 00:00:32]} {[%emt
00:01:20]} 40. Qxf5 {[%clk 00:01:02]} {[%emt 00:00:19]} Qxf5 {[%clk 00:00:41]}
{[%emt 00:00:21]} 41. Nxf5 {[%clk 00:29:27]} {[%emt 00:02:04]} Be5 {[%clk
00:28:53]} {[%emt 00:02:18]} 42. f4 {[%clk 00:27:43]} {[%emt 00:02:14]} Bc3
{[%clk 00:28:58]} {[%emt 00:00:26]} 43. Re3 {[%clk 00:24:38]} {[%emt 00:03:35]}
Rd1+ {[%clk 00:29:10]} {[%emt 00:00:18]} 44. Kf2 {[%clk 00:24:25]} {[%emt
00:00:42]} Bb2 {[%clk 00:29:27]} {[%emt 00:00:14]} 45. a4 {[%clk 00:24:40]}
{[%emt 00:00:15]} g6 {[%clk 00:29:35]} {[%emt 00:00:21]} 46. Ne7 {[%clk
00:23:18]} {[%emt 00:01:52]} g5 {[%clk 00:29:54]} {[%emt 00:00:12]} 47. a5
{[%clk 00:20:21]} {[%emt 00:03:27]} gxf4 {[%clk 00:28:41]} {[%emt 00:01:43]} 48.
gxf4 {[%clk 00:20:45]} {[%emt 00:00:06]} Bc1 {[%clk 00:29:06]} {[%emt
00:00:05]} 49. Rd3 {[%clk 00:19:07]} {[%emt 00:02:07]} Rh1 {[%clk 00:29:22]}
{[%emt 00:00:14]} 50. Bd4+ {[%clk 00:18:43]} {[%emt 00:00:55]} Kh7 {[%clk
00:29:40]} {[%emt 00:00:11]} 51. Rg3 {[%clk 00:18:56]} {[%emt 00:00:17]} Ng5
{[%clk 00:29:42]} {[%emt 00:00:28]} 52. fxg5 {[%clk 00:19:16]} {[%emt
00:00:10]} Bxg5 {[%clk 00:30:09]} {[%emt 00:00:03]} 53. Rxg5 {[%clk 00:15:20]}
{[%emt 00:04:26]} hxg5 {[%clk 00:30:32]} {[%emt 00:00:07]} 54. a6 {[%clk
00:15:11]} {[%emt 00:00:40]} Rh2+ {[%clk 00:30:57]} {[%emt 00:00:04]} 55. Kg1
{[%clk 00:15:30]} {[%emt 00:00:10]} Rxc2 {[%clk 00:31:23]} {[%emt 00:00:06]} 56.
a7 {[%clk 00:15:51]} {[%emt 00:00:09]} Ra2 {[%clk 00:31:49]} {[%emt 00:00:04]}
57. b5 {[%clk 00:16:06]} {[%emt 00:00:14]} 1-0

[Event "The Schackveckan 2023: IM-turnering"]
[Site "Goteborgs schackcentrum, Vegagatan 20, Gothenburg, Sweden"]
[Date "2023.08.11"]
[Round "9.4"]
[White "Karlsson, Stefan"]
[Black "Hector, Jonny"]
[Result "0-1"]
[TimeControl "90 minutes for 40 moves + 30 minutes for the rest of the game + 30 seconds per move from move one."]
[BlackTitle "GM"]
[WhiteFideId "1771183"]
[BlackFideId "1700090"]
[WhiteElo "1925"]
[BlackElo "2466"]

1. e4 {[%clk 01:30:50]} {[%emt 00:00:03]} e5 {[%clk 01:30:56]} {[%emt
00:00:10]} 2. Nf3 {[%clk 01:30:27]} {[%emt 00:00:53]} Nc6 {[%clk 01:31:22]}
{[%emt 00:00:05]} 3. Bb5 {[%clk 01:29:30]} {[%emt 00:01:27]} a6 {[%clk
01:31:03]} {[%emt 00:00:48]} 4. Bxc6 {[%clk 01:28:58]} {[%emt 00:01:02]} dxc6
{[%clk 01:31:21]} {[%emt 00:00:11]} 5. O-O {[%clk 01:28:01]} {[%emt 00:01:28]}
Bg4 {[%clk 01:31:20]} {[%emt 00:00:31]} 6. h3 {[%clk 01:27:25]} {[%emt
00:01:07]} Bh5 {[%clk 01:31:41]} {[%emt 00:00:08]} 7. g4 {[%clk 01:27:44]}
{[%emt 00:00:11]} Bg6 {[%clk 01:32:00]} {[%emt 00:00:10]} 8. Nxe5 {[%clk
01:28:11]} {[%emt 00:00:05]} Bd6 {[%clk 01:31:56]} {[%emt 00:00:34]} 9. Nxg6
{[%clk 01:26:25]} {[%emt 00:02:17]} hxg6 {[%clk 01:32:20]} {[%emt 00:00:04]} 10.
Qf3 {[%clk 01:24:51]} {[%emt 00:02:05]} Qd7 {[%clk 01:31:40]} {[%emt 00:01:10]}
11. d3 {[%clk 01:21:40]} {[%emt 00:03:41]} O-O-O {[%clk 01:29:26]} {[%emt
00:02:43]} 12. Nd2 {[%clk 01:17:33]} {[%emt 00:04:38]} f5 {[%clk 01:27:58]}
{[%emt 00:01:57]} 13. Nc4 {[%clk 01:07:49]} {[%emt 00:10:15]} Rf8 {[%clk
01:21:11]} {[%emt 00:07:16]} 14. e5 {[%clk 00:50:44]} {[%emt 00:17:35]} Be7
{[%clk 01:18:16]} {[%emt 00:03:25]} 15. Re1 {[%clk 00:39:00]} {[%emt 00:12:14]}
Qd5 {[%clk 01:08:50]} {[%emt 00:09:55]} 16. Qg2 {[%clk 00:32:28]} {[%emt
00:07:04]} f4 {[%clk 00:57:58]} {[%emt 00:11:21]} 17. Re4 {[%clk 00:25:10]}
{[%emt 00:07:48]} g5 {[%clk 00:57:13]} {[%emt 00:01:14]} 18. Bd2 {[%clk
00:20:53]} {[%emt 00:04:48]} Qe6 {[%clk 00:48:07]} {[%emt 00:09:37]} 19. Qf3
{[%clk 00:19:20]} {[%emt 00:02:02]} Nh6 {[%clk 00:41:31]} {[%emt 00:07:06]} 20.
a4 {[%clk 00:15:34]} {[%emt 00:04:16]} Nf7 {[%clk 00:41:04]} {[%emt 00:00:57]}
21. Bc3 {[%clk 00:12:50]} {[%emt 00:03:15]} Rh6 {[%clk 00:39:35]} {[%emt
00:01:59]} 22. Kg2 {[%clk 00:12:16]} {[%emt 00:01:03]} Rfh8 {[%clk 00:38:50]}
{[%emt 00:01:15]} 23. Rh1 {[%clk 00:11:53]} {[%emt 00:00:53]} Nd8 {[%clk
00:36:22]} {[%emt 00:02:58]} 24. b4 {[%clk 00:10:26]} {[%emt 00:01:57]} R8h7
{[%clk 00:34:28]} {[%emt 00:02:24]} 25. Nd2 {[%clk 00:07:11]} {[%emt 00:03:45]}
Qa2 {[%clk 00:31:51]} {[%emt 00:03:06]} 26. b5 {[%clk 00:06:38]} {[%emt
00:01:03]} cxb5 {[%clk 00:28:20]} {[%emt 00:04:02]} 27. axb5 {[%clk 00:06:50]}
{[%emt 00:00:19]} Qxc2 {[%clk 00:28:20]} {[%emt 00:00:29]} 28. bxa6 {[%clk
00:03:57]} {[%emt 00:03:23]} Rxa6 {[%clk 00:23:54]} {[%emt 00:04:55]} 29. Nb1
{[%clk 00:02:02]} {[%emt 00:02:25]} Rhh6 {[%clk 00:19:23]} {[%emt 00:05:02]} 30.
Re2 {[%clk 00:01:37]} {[%emt 00:00:55]} Qa4 {[%clk 00:16:35]} {[%emt 00:03:15]}
31. Nd2 {[%clk 00:01:58]} {[%emt 00:00:11]} Qd7 {[%clk 00:12:48]} {[%emt
00:04:17]} 32. Ne4 {[%clk 00:01:57]} {[%emt 00:00:32]} Rhc6 {[%clk 00:09:28]}
{[%emt 00:03:49]} 33. Rb1 {[%clk 00:01:15]} {[%emt 00:01:12]} Ra3 {[%clk
00:07:49]} {[%emt 00:02:09]} 34. Rc2 {[%clk 00:01:04]} {[%emt 00:00:41]} Ne6
{[%clk 00:07:22]} {[%emt 00:00:57]} 35. Rbc1 {[%clk 00:01:06]} {[%emt
00:00:29]} Kb8 {[%clk 00:06:09]} {[%emt 00:01:43]} 36. Qd1 {[%clk 00:00:59]}
{[%emt 00:00:37]} Nd4 {[%clk 00:03:40]} {[%emt 00:02:59]} 37. Bxd4 {[%clk
00:01:14]} {[%emt 00:00:15]} Qxd4 {[%clk 00:04:06]} {[%emt 00:00:03]} 38. Rxc6
{[%clk 00:01:20]} {[%emt 00:00:27]} Rxd3 {[%clk 00:03:20]} {[%emt 00:01:13]} 39.
Qe2 {[%clk 00:01:12]} {[%emt 00:00:39]} f3+ {[%clk 00:02:46]} {[%emt 00:01:03]}
40. Qxf3 {[%clk 00:00:56]} {[%emt 00:00:46]} Rxf3 {[%clk 00:03:04]} {[%emt
00:00:12]} 41. R6c4 {[%clk 00:29:46]} {[%emt 00:01:41]} Qd3 {[%clk 00:31:54]}
{[%emt 00:01:40]} 42. R1c3 {[%clk 00:29:43]} {[%emt 00:00:32]} Qxe4 {[%clk
00:32:09]} {[%emt 00:00:15]} 0-1

[Event "The Schackveckan 2023: IM-turnering"]
[Site "Goteborgs schackcentrum, Vegagatan 20, Gothenburg, Sweden"]
[Date "2023.08.11"]
[Round "9.5"]
[White "Brattgjerd, Isak Vinh"]
[Black "Berggren Torell, Harald"]
[Result "1-0"]
[TimeControl "90 minutes for 40 moves + 30 minutes for the rest of the game + 30 seconds per move from move one."]
[WhiteFideId "1549880"]
[BlackFideId "1714031"]
[WhiteElo "2214"]
[BlackElo "2061"]

1. e4 {[%clk 01:06:34]} {[%emt 00:24:25]} d6 {[%clk 01:27:53]} {[%emt
00:03:07]} 2. d4 {[%clk 01:07:00]} {[%emt 00:00:04]} g6 {[%clk 01:28:18]}
{[%emt 00:00:06]} 3. Nc3 {[%clk 01:07:27]} {[%emt 00:00:03]} Bg7 {[%clk
01:28:34]} {[%emt 00:00:08]} 4. Be3 {[%clk 01:07:55]} {[%emt 00:00:08]} Nf6
{[%clk 01:28:43]} {[%emt 00:00:21]} 5. Qd2 {[%clk 01:08:21]} {[%emt 00:00:04]}
c6 {[%clk 01:29:10]} {[%emt 00:00:03]} 6. a4 {[%clk 01:08:47]} {[%emt
00:00:04]} Nbd7 {[%clk 01:28:37]} {[%emt 00:01:03]} 7. Bh6 {[%clk 01:09:02]}
{[%emt 00:00:15]} Bxh6 {[%clk 01:28:16]} {[%emt 00:00:51]} 8. Qxh6 {[%clk
01:09:30]} {[%emt 00:00:02]} Qa5 {[%clk 01:27:45]} {[%emt 00:01:00]} 9. O-O-O
{[%clk 01:09:40]} {[%emt 00:00:20]} Nb6 {[%clk 01:23:58]} {[%emt 00:04:19]} 10.
Bd3 {[%clk 00:57:45]} {[%emt 00:12:23]} Nxa4 {[%clk 00:58:19]} {[%emt
00:26:09]} 11. Nge2 {[%clk 00:57:12]} {[%emt 00:01:03]} Nxc3 {[%clk 00:57:39]}
{[%emt 00:01:11]} 12. Nxc3 {[%clk 00:54:36]} {[%emt 00:03:06]} Qh5 {[%clk
00:56:55]} {[%emt 00:01:13]} 13. Qd2 {[%clk 00:54:31]} {[%emt 00:00:35]} Bd7
{[%clk 00:53:33]} {[%emt 00:03:52]} 14. f4 {[%clk 00:54:11]} {[%emt 00:00:50]}
Qa5 {[%clk 00:45:47]} {[%emt 00:08:19]} 15. Kb1 {[%clk 00:50:01]} {[%emt
00:04:37]} Qb4 {[%clk 00:39:40]} {[%emt 00:06:38]} 16. Be2 {[%clk 00:48:27]}
{[%emt 00:02:03]} O-O-O {[%clk 00:33:11]} {[%emt 00:06:56]} 17. Bf3 {[%clk
00:47:08]} {[%emt 00:01:52]} Bg4 {[%clk 00:31:01]} {[%emt 00:02:40]} 18. Bxg4+
{[%clk 00:46:56]} {[%emt 00:00:43]} Nxg4 {[%clk 00:31:28]} {[%emt 00:00:02]} 19.
h3 {[%clk 00:46:57]} {[%emt 00:00:29]} Nf6 {[%clk 00:31:27]} {[%emt 00:00:31]}
20. g4 {[%clk 00:47:21]} {[%emt 00:00:06]} e6 {[%clk 00:21:57]} {[%emt
00:10:02]} 21. Rhf1 {[%clk 00:46:45]} {[%emt 00:01:05]} h6 {[%clk 00:17:32]}
{[%emt 00:04:55]} 22. f5 {[%clk 00:27:52]} {[%emt 00:19:22]} exf5 {[%clk
00:16:42]} {[%emt 00:01:20]} 23. gxf5 {[%clk 00:28:13]} {[%emt 00:00:09]} g5
{[%clk 00:16:33]} {[%emt 00:00:38]} 24. h4 {[%clk 00:25:56]} {[%emt 00:02:48]}
g4 {[%clk 00:13:54]} {[%emt 00:03:10]} 25. Qf4 {[%clk 00:25:19]} {[%emt
00:01:06]} h5 {[%clk 00:14:05]} {[%emt 00:00:19]} 26. Qg5 {[%clk 00:22:55]}
{[%emt 00:02:53]} Ne8 {[%clk 00:11:01]} {[%emt 00:03:36]} 27. Ne2 {[%clk
00:20:35]} {[%emt 00:02:49]} Nc7 {[%clk 00:07:04]} {[%emt 00:04:27]} 28. Qe3
{[%clk 00:18:57]} {[%emt 00:02:06]} Rde8 {[%clk 00:06:17]} {[%emt 00:01:18]} 29.
f6 {[%clk 00:17:58]} {[%emt 00:01:28]} Kb8 {[%clk 00:04:46]} {[%emt 00:02:02]}
30. Ng3 {[%clk 00:15:44]} {[%emt 00:02:44]} Re6 {[%clk 00:02:29]} {[%emt
00:02:47]} 31. Qd3 {[%clk 00:15:18]} {[%emt 00:00:56]} d5 {[%clk 00:02:06]}
{[%emt 00:00:53]} 32. e5 {[%clk 00:15:35]} {[%emt 00:00:13]} Qc4 {[%clk
00:01:37]} {[%emt 00:00:59]} 33. Rf5 {[%clk 00:15:29]} {[%emt 00:00:36]} Qxd3
{[%clk 00:01:20]} {[%emt 00:00:47]} 34. Rxd3 {[%clk 00:15:42]} {[%emt
00:00:17]} c5 {[%clk 00:01:50]} {[%emt 00:00:01]} 35. c3 {[%clk 00:15:58]}
{[%emt 00:00:14]} cxd4 {[%clk 00:01:41]} {[%emt 00:00:38]} 36. cxd4 {[%clk
00:16:06]} {[%emt 00:00:23]} Ree8 {[%clk 00:02:10]} {[%emt 00:00:01]} 37. Nxh5
{[%clk 00:15:26]} {[%emt 00:01:09]} Ne6 {[%clk 00:02:11]} {[%emt 00:00:29]} 38.
Ng7 {[%clk 00:13:30]} {[%emt 00:02:26]} Ref8 {[%clk 00:01:39]} {[%emt
00:01:02]} 39. Nxe6 {[%clk 00:12:06]} {[%emt 00:01:54]} fxe6 {[%clk 00:02:03]}
{[%emt 00:00:07]} 40. Rg5 {[%clk 00:12:10]} {[%emt 00:00:25]} Rxh4 {[%clk
00:01:09]} {[%emt 00:01:24]} 41. Rg3 {[%clk 00:12:35]} {[%emt 00:00:05]} a6
{[%clk 00:21:19]} {[%emt 00:10:21]} 42. R3xg4 {[%clk 00:42:51]} {[%emt
00:00:14]} Rxg4 {[%clk 00:21:37]} {[%emt 00:00:11]} 43. Rxg4 {[%clk 00:43:17]}
{[%emt 00:00:03]} Kc7 {[%clk 00:21:33]} {[%emt 00:00:35]} 44. Rg7+ {[%clk
00:43:42]} {[%emt 00:00:05]} Kc6 {[%clk 00:21:45]} {[%emt 00:00:19]} 45. Re7
{[%clk 00:44:00]} {[%emt 00:00:11]} Kb5 {[%clk 00:22:07]} {[%emt 00:00:08]} 46.
b3 {[%clk 00:41:51]} {[%emt 00:02:39]} Kb4 {[%clk 00:21:35]} {[%emt 00:01:02]}
47. Kb2 {[%clk 00:42:20]} {[%emt 00:00:01]} b5 {[%clk 00:21:52]} {[%emt
00:00:14]} 48. Rxe6 {[%clk 00:42:46]} {[%emt 00:00:04]} Rh8 {[%clk 00:22:16]}
{[%emt 00:00:06]} 49. Rc6 {[%clk 00:43:11]} {[%emt 00:00:04]} 1-0